bitfinex/quotes_ETHUSD_20230117
["timestamp","ask_amount","ask_price","bid_price","bid_amount"]
[1673925904534,0.9573116,1561.4,1561.2,3.10003108]
[1673925904805,0.9573116,1561.4,1561.1,9.8545808]
[1673925904969,0.9573116,1561.4,1561.1,9.8485808]
[1673925905185,3.46268579,1561.5,1561.1,9.8485808]
[1673925905428,3.39568579,1561.5,1561.1,9.8485808]
[1673925905643,2.39568579,1561.5,1561.1,9.8485808]
[1673925905857,3.77902832,1561.5,1561.2,0.98485808]
[1673925906429,2.34065413,1561.4,1561.2,0.98485808]
[1673925906695,0.9573116,1561.4,1561.2,0.98485808]
[1673925907690,2.3405073,1561.4,1561.2,0.98485808]
[1673925908885,2.46268579,1561.5,1561.2,0.98485808]
[1673925909058,2.39568579,1561.5,1561.2,0.98485808]
[1673925909264,3.77886505,1561.5,1561.2,0.98485808]
[1673925909532,2.39568579,1561.5,1561.2,0.98485808]
[1673925909745,3.77884182,1561.5,1561.2,0.98485808]
[1673925910269,2.39568579,1561.5,1561.2,0.98485808]
[1673925910487,3.77883735,1561.5,1561.2,0.98485808]
[1673925910632,3.77883735,1561.5,1561.2,0.98098138]
[1673925910838,4.77883735,1561.5,1561.2,0.98098138]
[1673925911048,2.34032699,1561.4,1561.1,1.54]
[1673925911313,2.34032699,1561.4,1561.1,1.474]
[1673925911525,10.66383118,1561.4,1561.0,18.6699]
[1673925911734,2.46268579,1561.4,1561.1,1.474]
[1673925911967,0.9573116,1561.4,1561.1,1.474]
[1673925912159,9.6510116,1561.5,1561.1,20.51224513]
[1673925912364,9.6510116,1561.5,1561.1,20.57224513]
[1673925912788,1.0243116,1561.5,1561.2,5.36515447]
[1673925912979,3.35743883,1561.6,1561.4,1.471]
[1673925912980,1.0243116,1561.6,1561.4,1.471]
[1673925913209,0.9573116,1561.6,1561.5,1.474]
[1673925913629,2.34034826,1561.6,1561.5,1.474]
[1673925913825,2.34033887,1561.6,1561.5,1.474]
[1673925915312,0.9573116,1561.6,1561.5,1.474]
[1673925915644,1.07859552,1561.7,1561.5,3.0954]
[1673925915857,1.07859552,1561.7,1561.6,1.471]
[1673925916406,0.12128392,1561.7,1561.6,1.471]
[1673925916988,0.12128392,1561.7,1561.5,1.474]
[1673925916989,1.07859552,1561.7,1561.5,1.474]
[1673925917207,4.59370611,1561.7,1561.5,1.474]
[1673925917429,3.21127481,1561.7,1561.5,1.474]
[1673925917819,2.51696971,1561.7,1561.5,1.234]
[1673925918028,1.07859552,1561.7,1561.5,1.234]
[1673925918593,0.12128392,1561.7,1561.5,4.234]
[1673925919452,0.12128392,1561.7,1561.6,1.234]
[1673925920448,1.07859552,1561.7,1561.6,1.234]
[1673925920659,2.46154818,1561.7,1561.6,1.234]
[1673925923072,3.89992237,1561.7,1561.6,1.234]
[1673925923286,3.54366902,1561.7,1561.6,1.234]
[1673925923917,2.94261077,1561.7,1561.6,1.234]
[1673925924180,2.94261077,1561.7,1561.4,15.58792]
[1673925924394,2.34043338,1561.6,1561.4,15.58192]
[1673925924705,2.58413883,1561.7,1561.4,15.58192]
[1673925924856,2.51713883,1561.7,1561.4,7.69842]
[1673925925067,2.51713883,1561.7,1561.5,0.769842]
[1673925926283,2.34231878,1561.6,1561.5,0.769842]
[1673925926440,0.95748072,1561.6,1561.5,0.769842]
[1673925926659,2.34224179,1561.6,1561.5,0.769842]
[1673925927324,2.34224179,1561.6,1561.4,7.70442]
[1673925927494,2.34224179,1561.6,1561.4,7.69842]
[1673925927945,0.95748072,1561.6,1561.4,7.69842]
[1673925928135,2.34225207,1561.6,1561.4,7.69842]
[1673925928357,0.95748072,1561.6,1561.4,7.69842]
[1673925928603,2.34277627,1561.6,1561.5,0.769842]
[1673925928765,2.34277627,1561.6,1561.5,1.769842]
[1673925928962,2.34277627,1561.6,1561.5,0.769842]
[1673925929172,2.34277627,1561.6,1561.5,1.769842]
[1673925929541,2.58413883,1561.7,1561.5,1.769842]
[1673925929709,2.51713883,1561.7,1561.5,1.769842]
[1673925929927,2.51713883,1561.7,1561.5,0.769842]
[1673925930256,1.07876464,1561.7,1561.5,0.769842]
[1673925930474,1.07876464,1561.7,1561.6,2.3889842]
[1673925930636,0.12128392,1561.7,1561.6,7.6229842]
[1673925930845,0.12128392,1561.7,1561.6,7.6829842]
[1673925931325,0.12128392,1561.7,1561.6,23.60696827]
[1673925931909,0.12128392,1561.7,1561.6,23.60416545]
[1673925934049,0.12128392,1561.7,1561.6,23.60152209]
[1673925935431,0.12128392,1561.7,1561.6,27.49641154]
[1673925935751,0.12128392,1561.7,1561.6,27.49755347]
[1673925935896,0.12128392,1561.7,1561.6,23.60152209]
[1673925936688,0.12128392,1561.7,1561.6,27.49865401]
[1673925937583,0.12128392,1561.7,1561.6,28.73265401]
[1673925939470,0.12128392,1561.7,1561.6,24.83552209]
[1673925939729,0.12128392,1561.7,1561.6,28.73266154]
[1673925940113,0.12128392,1561.7,1561.6,24.83552209]
[1673925940324,0.12128392,1561.7,1561.6,28.73263695]
[1673925941577,0.04538714,1561.7,1561.6,30.62163284]
[1673925941748,0.04538714,1561.7,1561.6,29.66961879]
[1673925942113,0.00038714,1561.7,1561.6,37.07361879]
[1673925942325,0.13538682,1561.9,1561.7,1.0]
[1673925942533,0.13538682,1561.9,1561.8,36.42639098]
[1673925942797,0.13538682,1561.9,1561.8,37.13273016]
[1673925942977,0.13538682,1561.9,1561.8,40.13273016]
[1673925948859,0.13538682,1561.9,1561.8,38.89873016]
[1673925949858,0.13538682,1561.9,1561.8,38.90486203]
[1673925953988,0.13538682,1561.9,1561.8,35.00240325]
[1673925955094,0.13538682,1561.9,1561.8,34.35606407]
[1673925957571,0.13538682,1561.9,1561.8,31.88806407]
[1673925959626,0.13538682,1561.9,1561.8,33.11806407]
[1673925960969,6.82e-06,1561.9,1561.8,33.76440325]
[1673925961949,6.82e-06,1561.9,1561.8,37.66507909]
[1673925962089,6.82e-06,1561.9,1561.8,33.76440325]
[1673925965147,6.82e-06,1561.9,1561.8,27.36154325]
[1673925965342,6.82e-06,1561.9,1561.8,25.48520407]
[1673925965552,6.82e-06,1561.9,1561.8,25.38520407]
[1673925966548,0.48040682,1561.9,1561.8,6.46286]
[1673925968599,0.48040682,1561.9,1561.8,9.46286]
[1673925975232,0.48040682,1561.9,1561.8,18.98234407]
[1673925975543,6.82e-06,1561.9,1561.8,18.98234407]
[1673925975757,6.82e-06,1561.9,1561.8,21.52150348]
[1673925975979,6.82e-06,1561.9,1561.8,22.16784266]
[1673925978330,6.82e-06,1561.9,1561.8,22.36298786]
[1673925978648,6.82e-06,1561.9,1561.8,37.51822637]
[1673925978813,6.82e-06,1561.9,1561.8,39.39387658]
[1673925980317,6.82e-06,1561.9,1561.8,40.34712645]
[1673925980538,6.82e-06,1561.9,1561.8,39.39387658]
[1673925980916,0.13538682,1562.0,1561.9,1.07999318]
[1673925981125,0.13538682,1562.0,1561.9,32.3081045]
[1673925981313,0.13538682,1562.0,1561.9,33.87050612]
[1673925981531,0.13538682,1562.0,1561.9,35.30206512]
[1673925982168,0.13538682,1562.0,1561.9,33.87050612]
[1673925982912,0.13538682,1562.0,1561.9,29.1092889]
[1673925983476,0.13538682,1562.0,1561.9,26.92185533]
[1673925984378,0.13538682,1562.0,1561.9,25.68781785]
[1673925985113,0.13538682,1562.0,1561.9,25.68792449]
[1673925985329,0.13538682,1562.0,1561.9,24.95038861]
[1673925988903,0.13538682,1562.0,1561.9,24.30404943]
[1673925989352,0.13538682,1562.0,1561.9,24.10890423]
[1673925989935,0.13538682,1562.0,1561.9,27.30890423]
[1673925991131,0.13538682,1562.0,1561.9,23.26151725]
[1673925998319,0.13538682,1562.0,1561.9,15.78106725]
[1673925998625,2.80726754,1562.0,1561.9,3.26199318]
[1673925998842,1.84978682,1562.0,1561.9,3.20199318]
[1673926002071,4.1961171,1562.0,1561.9,3.20199318]
[1673926002980,4.7663011,1562.0,1561.9,3.20199318]
[1673926004714,6.48119457,1562.0,1561.9,3.20199318]
[1673926004924,6.77819457,1562.0,1561.9,3.20199318]
[1673926005130,9.69725921,1562.0,1561.9,3.20199318]
[1673926005380,7.77819457,1562.0,1561.9,4.50199318]
[1673926005593,6.54819457,1562.0,1561.9,4.50199318]
[1673926005835,6.06782936,1562.0,1561.9,4.50199318]
[1673926006132,7.50620355,1562.0,1561.9,4.50199318]
[1673926006337,6.06782936,1562.0,1561.9,4.50199318]
[1673926007770,3.72097082,1562.0,1561.9,4.50199318]
[1673926008017,3.65397082,1562.0,1561.9,4.50199318]
[1673926008241,5.99968748,1562.0,1561.9,4.50199318]
[1673926008382,6.06668748,1562.0,1561.9,4.50199318]
[1673926009082,7.50506167,1562.0,1561.9,4.50199318]
[1673926009229,6.06668748,1562.0,1561.9,4.50199318]
[1673926009441,4.83268748,1562.0,1561.9,4.50199318]
[1673926009657,4.76568748,1562.0,1561.9,4.50199318]
[1673926009873,5.76568748,1562.0,1561.9,4.50199318]
[1673926010094,5.83268748,1562.0,1561.9,4.50199318]
[1673926010327,4.83268748,1562.0,1561.9,4.50199318]
[1673926010545,5.99968748,1562.0,1561.9,4.50199318]
[1673926010709,6.06668748,1562.0,1561.9,4.50199318]
[1673926010931,8.50506167,1562.0,1561.9,4.50199318]
[1673926011446,8.73506167,1562.0,1561.9,4.50199318]
[1673926011659,7.77705269,1562.0,1561.9,4.50199318]
[1673926011870,14.17909269,1562.0,1561.9,4.50199318]
[1673926013271,15.13686601,1562.0,1561.9,4.50199318]
[1673926013849,7.73482601,1562.0,1561.9,4.50199318]
[1673926014059,3.38078682,1562.0,1561.9,4.50199318]
[1673926014269,3.31378682,1562.0,1561.9,4.50199318]
[1673926014599,2.07978682,1562.0,1561.9,4.50199318]
[1673926016010,2.07978682,1562.0,1561.9,4.5]
[1673926016322,3.03756014,1562.0,1561.9,4.5]
[1673926016480,4.19485076,1562.0,1561.9,4.5]
[1673926016692,2.32716014,1562.0,1561.9,4.5]
[1673926016931,1.36938682,1562.0,1561.9,4.5]
[1673926017776,2.32716014,1562.0,1561.9,4.5]
[1673926017945,3.71439825,1562.0,1561.9,4.5]
[1673926018787,2.48039825,1562.0,1561.9,4.5]
[1673926020624,6.24073102,1562.0,1561.9,4.5]
[1673926020837,6.78813102,1562.0,1561.9,4.5]
[1673926021153,6.8303577,1562.0,1561.9,4.5]
[1673926023045,8.74942234,1562.0,1561.9,4.49648833]
[1673926024372,7.74942234,1562.0,1561.9,4.49648833]
[1673926024957,7.26902234,1562.0,1561.9,4.49648833]
[1673926026829,5.83064815,1562.0,1561.9,4.49648833]
[1673926028093,7.26844483,1562.0,1561.9,4.49648833]
[1673926028559,5.83064815,1562.0,1561.9,4.49648833]
[1673926029454,7.06464815,1562.0,1561.9,4.49648833]
[1673926029875,5.12363664,1562.0,1561.9,4.49648833]
[1673926030046,4.26167806,1562.0,1561.9,4.49648833]
[1673926030257,4.19467806,1562.0,1561.9,4.49648833]
[1673926030451,5.15334998,1562.0,1561.9,4.49648833]
[1673926030656,4.26167806,1562.0,1561.9,4.49648833]
[1673926030903,4.19467806,1562.0,1561.9,4.49648833]
[1673926031238,5.05301178,1562.0,1561.9,4.49648833]
[1673926031398,5.12001178,1562.0,1561.9,4.49648833]
[1673926032335,7.03907642,1562.0,1561.9,4.49648833]
[1673926033431,5.60102329,1562.0,1561.9,4.49648833]
[1673926034494,7.03969539,1562.0,1561.9,4.49648833]
[1673926034801,5.60102329,1562.0,1561.9,4.49648833]
[1673926036645,12.20394282,1562.0,1561.9,4.49648833]
[1673926036852,14.60618859,1562.0,1561.9,4.49648833]
[1673926037100,14.83618859,1562.0,1561.9,4.49648833]
[1673926037492,12.91712395,1562.0,1561.9,4.49648833]
[1673926037959,13.39752395,1562.0,1561.9,4.49648833]
[1673926038114,12.91712395,1562.0,1561.9,4.49648833]
[1673926038323,10.51487818,1562.0,1561.9,4.49648833]
[1673926038552,12.91406625,1562.0,1561.9,4.49648833]
[1673926038762,10.51487818,1562.0,1561.9,4.49648833]
[1673926038950,12.91390153,1562.0,1561.9,4.49648833]
[1673926039190,10.51487818,1562.0,1561.9,4.49648833]
[1673926041214,12.91386411,1562.0,1561.9,4.49648833]
[1673926041376,25.45478398,1562.0,1561.9,1.95423111]
[1673926041837,25.45478398,1562.0,1561.9,0.65423111]
[1673926042007,27.08650054,1562.0,1561.9,0.65423111]
[1673926042211,28.57140805,1562.0,1561.9,0.65423111]
[1673926042795,30.23412461,1562.0,1561.9,0.65423111]
[1673926043325,30.23140708,1562.0,1561.9,0.65423111]
[1673926045055,3.02314071,1561.9,1561.4,9.3674]
[1673926045266,2.18511944,1561.5,1561.4,9.3614]
[1673926045637,3.57235755,1561.5,1561.4,0.06]
[1673926045788,3.57235755,1561.5,1561.1,22.50502476]
[1673926046000,2.18511944,1561.5,1561.2,0.30109455]
[1673926046209,3.50928835,1561.5,1561.2,0.30109455]
[1673926046642,3.50928835,1561.5,1561.2,3.30109455]
[1673926046849,2.55016891,1561.5,1561.2,3.0]
[1673926048026,3.50928835,1561.5,1561.2,3.0]
[1673926048865,2.55016891,1561.5,1561.2,3.0]
[1673926052398,2.25511944,1561.6,1561.2,6.11662407]
[1673926052528,4.98856617,1561.7,1561.2,6.11662407]
[1673926052529,1.02611944,1561.7,1561.4,6.4045]
[1673926052743,22.70915467,1561.8,1561.4,15.98562407]
[1673926052744,12.20561449,1561.8,1561.4,15.98562407]
[1673926052991,12.20561449,1561.8,1561.5,0.64633918]
[1673926053314,12.20561449,1561.8,1561.5,7.05013918]
[1673926053524,12.68611449,1561.8,1561.5,9.41431551]
[1673926053735,12.20561449,1561.8,1561.5,9.41431551]
[1673926054939,12.20561449,1561.8,1561.5,15.81840551]
[1673926055206,11.24649505,1561.8,1561.5,15.81840551]
[1673926056825,12.20561449,1561.8,1561.5,15.81840551]
[1673926057041,12.20561449,1561.8,1561.6,1.58184055]
[1673926057317,12.20561449,1561.8,1561.6,7.98552055]
[1673926057468,12.20561449,1561.8,1561.6,8.04552055]
[1673926057888,1.81531449,1561.8,1561.6,8.04552055]
[1673926058152,1.74831449,1561.8,1561.6,8.04552055]
[1673926061974,1.74831449,1561.8,1561.6,0.06]
[1673926062183,3.03148918,1561.8,1561.4,10.3986647]
[1673926062451,3.18696432,1561.8,1561.4,10.3986647]
[1673926062713,3.18696432,1561.8,1561.4,9.58100407]
[1673926063199,3.93068073,1561.8,1561.4,9.58100407]
[1673926063781,3.93068073,1561.8,1561.4,10.39884055]
[1673926065727,2.4920309,1561.8,1561.4,10.39884055]
[1673926066044,3.93068073,1561.8,1561.4,10.39884055]
[1673926066519,4.93068073,1561.8,1561.4,10.39884055]
[1673926066889,0.49306807,1561.7,1561.4,10.39883119]
[1673926067462,0.49063951,1561.7,1561.4,10.39883119]
[1673926067726,0.49063951,1561.7,1561.4,0.87782712]
[1673926067944,0.49063951,1561.7,1561.4,3.0]
[1673926068254,0.49063951,1561.7,1561.4,3.81782712]
[1673926070504,1.44975895,1561.7,1561.4,3.81782712]
[1673926070732,0.1449759,1561.6,1561.4,3.0]
[1673926073087,0.1449759,1561.6,1561.4,3.81793988]
[1673926073396,0.95911944,1561.7,1561.4,13.33905395]
[1673926073606,2.24291003,1561.7,1561.4,19.80355395]
[1673926074224,11.16951449,1561.8,1561.5,0.30075561]
[1673926074558,9.94051449,1561.8,1561.5,6.70456561]
[1673926074726,9.94051449,1561.8,1561.5,6.46381]
[1673926074927,9.46001449,1561.8,1561.5,6.46381]
[1673926075135,9.46001449,1561.8,1561.5,12.8679]
[1673926075341,9.46001449,1561.8,1561.5,15.58453875]
[1673926079146,8.50089505,1561.8,1561.6,0.30092167]
[1673926079375,9.46001449,1561.8,1561.5,12.8739]
[1673926079710,10.89866432,1561.8,1561.5,0.06]
[1673926079901,10.89866432,1561.8,1561.4,14.35248752]
[1673926080118,12.50939171,1561.8,1561.5,0.30099478]
[1673926080661,0.23,1561.7,1561.5,0.30099478]
[1673926081029,1.18911944,1561.7,1561.4,3.88393988]
[1673926081236,1.18911944,1561.7,1561.4,3.81793988]
[1673926081922,2.18911944,1561.7,1561.4,3.81793988]
[1673926082127,4.32594561,1561.7,1561.4,3.81793988]
[1673926082291,3.32594561,1561.7,1561.4,3.81793988]
[1673926082712,3.32594561,1561.7,1561.4,10.22237988]
[1673926082935,3.32594561,1561.7,1561.4,10.28237988]
[1673926084149,3.32594561,1561.7,1561.5,0.30093772]
[1673926084150,2.36682617,1561.7,1561.5,0.30093772]
[1673926087996,0.23,1561.7,1561.5,0.30093772]
[1673926088914,1.51468643,1561.7,1561.5,0.30093772]
[1673926089146,0.23,1561.7,1561.5,0.30093772]
[1673926089813,0.23,1561.7,1561.4,0.066]
[1673926089814,5.13749492,1561.7,1561.4,0.066]
[1673926090025,0.95911944,1561.5,1561.3,8.20429429]
[1673926090239,3.47784509,1561.5,1561.3,0.05659429]
[1673926090453,2.19311944,1561.5,1561.2,7.41504786]
[1673926090603,2.19311944,1561.5,1561.3,0.30109112]
[1673926090812,1.28331194,1561.4,1561.3,0.30109112]
[1673926091862,0.21931194,1561.4,1561.3,0.30109112]
[1673926093184,1.28331194,1561.4,1561.3,0.30109112]
[1673926094858,1.28331194,1561.4,1561.2,8.23898774]
[1673926095180,0.21931194,1561.4,1561.3,3.2]
[1673926095366,2.73831194,1561.4,1561.3,3.2]
[1673926095578,3.21891194,1561.4,1561.3,3.2]
[1673926095802,4.17803138,1561.4,1561.3,3.2]
[1673926095961,11.86688618,1561.4,1561.3,3.2]
[1673926096174,3.28591194,1561.4,1561.3,3.2]
[1673926096395,3.21891194,1561.4,1561.3,3.2]
[1673926098221,2.73831194,1561.4,1561.3,3.2]
[1673926102550,2.74031194,1561.4,1561.3,3.2]
[1673926102861,2.73831194,1561.4,1561.3,3.2]
[1673926104646,3.73831194,1561.4,1561.3,3.2]
[1673926104864,16.54731194,1561.4,1561.3,3.2]
[1673926105034,16.61431194,1561.4,1561.3,3.2]
[1673926105644,15.61431194,1561.4,1561.3,3.2]
[1673926105906,0.067,1561.4,1561.3,13.66832246]
[1673926106118,3.25396432,1561.8,1561.4,5.08]
[1673926106307,1.74831449,1561.8,1561.5,3.0]
[1673926106904,1.74831449,1561.8,1561.6,0.64633918]
[1673926109057,0.23,1561.7,1561.6,0.64633918]
[1673926112208,0.23,1561.7,1561.6,1.13973253]
[1673926117109,0.78919505,1561.8,1561.6,3.60773253]
[1673926117279,0.78919505,1561.8,1561.7,1.23]
[1673926117495,1.01919505,1561.8,1561.7,1.23]
[1673926117699,1.01919505,1561.8,1561.7,1.87633918]
[1673926118022,1.01919505,1561.8,1561.7,2.24297186]
[1673926121415,0.23,1561.8,1561.7,2.24297186]
[1673926125035,0.261,1561.9,1561.7,1.59663268]
[1673926125250,0.261,1561.9,1561.7,2.24297186]
[1673926125491,0.031,1561.9,1561.7,2.24297186]
[1673926125719,0.031,1561.9,1561.8,1.20329719]
[1673926125928,2.53043856,1562.0,1561.8,7.60615719]
[1673926126139,2.53043856,1562.0,1561.8,8.31309066]
[1673926126527,2.53043856,1562.0,1561.8,9.54309066]
[1673926126734,1.09178873,1562.0,1561.8,9.54309066]
[1673926126951,1.09178873,1562.0,1561.9,0.95430907]
[1673926127142,2.37007566,1562.0,1561.9,0.95430907]
[1673926127357,2.37007566,1562.0,1561.9,1.60064825]
[1673926130674,2.37007566,1562.0,1561.9,0.64633918]
[1673926131486,3.84960605,1562.0,1561.7,0.06259429]
[1673926131701,2.46584252,1561.9,1561.7,3.0]
[1673926131982,1.18755559,1561.9,1561.7,3.0]
[1673926132720,3.80432657,1561.9,1561.6,8.14349429]
[1673926132997,3.80432657,1561.9,1561.6,8.14149429]
[1673926132998,2.23527896,1561.8,1561.6,8.14149429]
[1673926133571,2.197,1561.7,1561.6,8.14149429]
[1673926133794,2.197,1561.7,1561.6,0.06059429]
[1673926134007,2.15944856,1561.7,1561.4,0.64633918]
[1673926134201,2.15944856,1561.7,1561.4,3.64633918]
[1673926134875,3.11700415,1561.7,1561.4,3.64633918]
[1673926135197,3.11700415,1561.7,1561.4,3.0]
[1673926135495,1.18755559,1561.7,1561.4,3.0]
[1673926135674,1.18755559,1561.7,1561.4,9.40448]
[1673926135888,1.18755559,1561.7,1561.4,10.11141347]
[1673926136099,1.18755559,1561.7,1561.4,13.31141347]
[1673926136544,0.95755559,1561.7,1561.4,19.71591347]
[1673926136757,2.23558233,1561.7,1561.5,1.97159135]
[1673926136967,2.23558233,1561.7,1561.5,11.37549135]
[1673926137282,2.23558233,1561.7,1561.6,0.64633918]
[1673926138870,2.23558233,1561.7,1561.5,11.43808564]
[1673926139083,2.23558233,1561.7,1561.5,12.08242482]
[1673926140846,0.95755559,1561.7,1561.5,12.08242482]
[1673926141091,2.23653125,1561.7,1561.5,12.08242482]
[1673926142013,2.23653125,1561.7,1561.5,10.11083347]
[1673926142737,3.67518108,1561.7,1561.5,3.70693347]
[1673926142928,3.67518108,1561.7,1561.5,3.64633918]
[1673926144823,2.23653125,1561.6,1561.5,3.64633918]
[1673926145033,0.95755559,1561.6,1561.5,3.64633918]
[1673926145298,2.23653125,1561.6,1561.5,3.64633918]
[1673926145459,0.95755559,1561.6,1561.5,3.64633918]
[1673926145680,2.23653125,1561.6,1561.5,3.64633918]
[1673926147852,2.61074936,1561.6,1561.5,0.64633918]
[1673926148165,13.63312349,1561.6,1561.4,3.2]
[1673926148360,3.427,1561.5,1561.4,3.2]
[1673926148572,8.06270355,1561.5,1561.4,3.2]
[1673926148728,8.12970355,1561.5,1561.4,3.2]
[1673926148941,10.03168869,1561.5,1561.4,3.2]
[1673926149322,8.59309102,1561.5,1561.4,3.2]
[1673926149502,13.95216664,1561.5,1561.4,3.2]
[1673926149679,8.57039102,1561.5,1561.4,3.2]
[1673926150352,14.49375378,1561.5,1561.4,3.2]
[1673926150877,3.74151617,1561.5,1561.4,3.2]
[1673926151054,2.44451617,1561.5,1561.4,3.2]
[1673926151269,0.2073,1561.5,1561.4,3.2]
[1673926152058,1.43874051,1561.6,1561.4,3.2]
[1673926152354,0.4805,1561.6,1561.4,9.60446]
[1673926152515,2.66774051,1561.7,1561.4,11.91274172]
[1673926152719,2.18724051,1561.7,1561.4,9.66505429]
[1673926153666,0.23,1561.6,1561.4,9.66505429]
[1673926154611,2.18724051,1561.7,1561.4,9.66505429]
[1673926156660,0.95824051,1561.7,1561.4,16.06955429]
[1673926157005,2.236354,1561.7,1561.4,16.06955429]
[1673926157133,2.236354,1561.7,1561.5,1.60695543]
[1673926159979,13.03194349,1561.8,1561.5,1.60695543]
[1673926160443,11.59454051,1561.8,1561.5,4.60695543]
[1673926161036,1.02524051,1561.8,1561.5,4.60695543]
[1673926161251,0.95824051,1561.8,1561.5,11.01096543]
[1673926161590,0.95824051,1561.8,1561.6,1.10109654]
[1673926161591,2.23679192,1561.8,1561.6,1.10109654]
[1673926166279,10.11584349,1561.9,1561.6,1.10109654]
[1673926166858,2.23727499,1561.8,1561.6,1.10109654]
[1673926168222,9.15760298,1561.9,1561.6,1.10109654]
[1673926168223,10.11584349,1561.9,1561.6,1.10109654]
[1673926168590,10.11584349,1561.9,1561.7,1.08910965]
[1673926169465,2.23742613,1561.8,1561.6,7.56727083]
[1673926169678,2.23742613,1561.8,1561.6,6.46417429]
[1673926170730,3.67482911,1561.8,1561.6,6.46417429]
[1673926170908,0.95824051,1561.8,1561.6,6.46417429]
[1673926171434,2.23778898,1561.8,1561.6,6.46417429]
[1673926173632,2.23778898,1561.8,1561.6,6.46161364]
[1673926175681,2.23778898,1561.8,1561.6,0.06059429]
[1673926175934,2.23778898,1561.7,1561.5,3.06059429]
[1673926176105,0.95824051,1561.7,1561.5,3.0]
[1673926176320,3.67539342,1561.7,1561.4,11.84339429]
[1673926176529,3.67539342,1561.7,1561.4,11.84139429]
[1673926176739,4.9672167,1561.7,1561.4,11.84139429]
[1673926176912,3.68746677,1561.7,1561.4,11.84139429]
[1673926178919,3.68746677,1561.7,1561.4,18.24582429]
[1673926179153,2.39564349,1561.7,1561.4,18.24582429]
[1673926179360,3.67529921,1561.7,1561.4,18.24582429]
[1673926180101,0.95824051,1561.7,1561.4,18.24582429]
[1673926180253,2.23796544,1561.7,1561.4,18.24582429]
[1673926181726,3.67536842,1561.7,1561.4,18.24582429]
[1673926182597,0.95824051,1561.7,1561.4,18.24582429]
[1673926182823,2.23796696,1561.7,1561.4,18.24582429]
[1673926183792,3.67536994,1561.7,1561.4,32.10828079]
[1673926183949,0.95824051,1561.7,1561.4,32.10828079]
[1673926184166,2.23779708,1561.7,1561.4,32.10828079]
[1673926184529,3.67520006,1561.7,1561.4,32.10828079]
[1673926185629,3.67520006,1561.7,1561.4,27.76694836]
[1673926189853,2.23779708,1561.6,1561.4,27.76694836]
[1673926190063,0.95824051,1561.6,1561.4,27.76694836]
[1673926190705,0.95824051,1561.6,1561.4,19.18614836]
[1673926191898,0.95824051,1561.6,1561.4,9.66502429]
[1673926192119,1.05406456,1561.5,1561.4,3.26059429]
[1673926192265,2.2387781,1561.5,1561.4,3.2]
[1673926193050,0.95824051,1561.5,1561.4,3.2]
[1673926193267,2.2387781,1561.5,1561.4,3.2]
[1673926194947,2.2387781,1561.5,1561.4,3.19790409]
[1673926196642,3.67618108,1561.5,1561.4,3.19790409]
[1673926196792,4.2840717,1561.5,1561.4,3.19790409]
[1673926197121,3.2840717,1561.5,1561.4,3.19790409]
[1673926198420,4.24326699,1561.5,1561.4,3.19790409]
[1673926198623,4.72386699,1561.5,1561.4,3.19790409]
[1673926198848,3.2840717,1561.5,1561.4,3.19790409]
[1673926200251,5.20220192,1561.5,1561.4,3.19790409]
[1673926200467,5.26920192,1561.5,1561.4,3.19790409]
[1673926200678,6.49920192,1561.5,1561.4,3.19790409]
[1673926200947,5.06179894,1561.5,1561.4,3.19790409]
[1673926201115,6.29179894,1561.5,1561.4,3.19790409]
[1673926201641,5.29179894,1561.5,1561.4,3.19790409]
[1673926203148,0.86313113,1561.5,1561.4,3.19790409]
[1673926203365,4.17071656,1561.6,1561.4,3.19790409]
[1673926203580,2.23865954,1561.5,1561.4,3.19790409]
[1673926204078,2.23865954,1561.5,1561.4,4.49790409]
[1673926204500,0.95886082,1561.5,1561.4,4.49790409]
[1673926204820,2.46865954,1561.5,1561.4,4.49790409]
[1673926205258,3.22852409,1561.5,1561.4,4.49790409]
[1673926206743,3.70801901,1561.5,1561.4,4.49790409]
[1673926207355,2.71815446,1561.5,1561.4,4.49790409]
[1673926207555,1.0257321,1561.6,1561.4,21.54090409]
[1673926207761,0.9587321,1561.6,1561.4,21.60149838]
[1673926208022,2.23823647,1561.6,1561.4,21.60149838]
[1673926208187,2.23823647,1561.6,1561.4,24.40230522]
[1673926208398,12.88028784,1561.7,1561.4,24.40230522]
[1673926211141,0.9587321,1561.6,1561.4,24.40230522]
[1673926211706,12.88028784,1561.7,1561.4,24.40230522]
[1673926212025,0.9587321,1561.6,1561.4,24.40230522]
[1673926212196,2.23848525,1561.6,1561.4,24.40230522]
[1673926212968,2.23848525,1561.6,1561.5,2.44023052]
[1673926213118,2.46408784,1561.7,1561.5,8.84432052]
[1673926213332,2.39708784,1561.7,1561.5,8.90491481]
[1673926213630,0.9587321,1561.6,1561.5,8.90491481]
[1673926217949,0.9607321,1561.6,1561.5,8.90291481]
[1673926218322,2.39708784,1561.7,1561.5,8.90491481]
[1673926218649,3.67729333,1561.7,1561.5,8.90491481]
[1673926221547,3.67729333,1561.7,1561.5,8.90290144]
[1673926221548,0.9587321,1561.7,1561.5,8.90290144]
[1673926221807,2.23877054,1561.7,1561.5,8.90290144]
[1673926223636,2.23877054,1561.7,1561.5,8.84390944]
[1673926226064,2.23877054,1561.7,1561.5,0.06059429]
[1673926226321,0.9587321,1561.6,1561.5,3.0]
[1673926226508,2.39708784,1561.6,1561.4,4.56049838]
[1673926226684,1.19844088,1561.5,1561.4,4.49790409]
[1673926226901,2.47847932,1561.5,1561.4,4.49790409]
[1673926228506,2.23597932,1561.5,1561.4,4.49790409]
[1673926231302,0.95594088,1561.5,1561.4,4.49790409]
[1673926231568,2.23597932,1561.5,1561.4,4.49790409]
[1673926231786,3.67433506,1561.5,1561.4,4.49790409]
[1673926232982,2.71839418,1561.5,1561.4,4.49790409]
[1673926235295,3.43614662,1561.5,1561.4,4.49790409]
[1673926236071,2.71839418,1561.5,1561.4,4.49790409]
[1673926236460,1.28003844,1561.5,1561.4,4.49790409]
[1673926238556,2.23903147,1561.5,1561.4,4.49790409]
[1673926243235,2.46434877,1561.6,1561.4,4.49790409]
[1673926243442,0.95899303,1561.5,1561.4,4.49790409]
[1673926244182,0.95899303,1561.5,1561.4,13.90240409]
[1673926244330,0.95899303,1561.5,1561.4,20.36749838]
[1673926244803,0.95899303,1561.5,1561.4,26.96112829]
[1673926244978,2.71786498,1561.6,1561.4,26.96112829]
[1673926244979,0.95899303,1561.6,1561.4,26.96112829]
[1673926245198,2.23861689,1561.6,1561.4,26.96112829]
[1673926246292,0.95899303,1561.6,1561.4,26.96112829]
[1673926246719,2.2387117,1561.6,1561.4,26.96112829]
[1673926248879,2.2387117,1561.6,1561.5,0.79292715]
[1673926249099,2.2387117,1561.6,1561.5,7.19701715]
[1673926249420,2.2387117,1561.6,1561.5,7.25761144]
[1673926249631,2.2387117,1561.6,1561.5,8.55761144]
[1673926251370,2.2387117,1561.6,1561.5,7.76468429]